bitfinex-derivatives/quotes_BNBF0:USTF0_20260114
["timestamp","ask_amount","ask_price","bid_price","bid_amount"]
[1768434649265,0.74567557,949.28,947.83,2.61605998]
[1768434649467,0.74567557,949.27,947.83,2.61605998]
[1768434649662,0.74567557,949.26,947.83,2.61605998]
[1768434649862,0.74567557,949.25,947.83,2.61605998]
[1768434650167,0.74567557,949.24,947.83,2.61605998]
[1768434650366,0.74567557,949.23,947.83,2.61605998]
[1768434650565,0.74567557,949.22,947.83,2.61605998]
[1768434650763,0.74567557,949.21,947.82,2.61605998]
[1768434650964,0.74567557,949.2,947.82,2.61605998]
[1768434651267,0.74567557,949.19,947.82,2.61605998]
[1768434651564,0.74567557,949.18,947.82,2.61605998]
[1768434651762,0.74567557,949.17,947.82,2.61605998]
[1768434651963,0.74567557,949.16,947.82,2.61605998]
[1768434652167,0.74567557,949.15,947.82,2.61605998]
[1768434652367,0.74567557,949.14,947.82,2.61605998]
[1768434652568,0.74567557,949.13,947.82,2.61605998]
[1768434652870,0.01031192,950.09,947.82,2.61605998]
[1768434652871,0.74567557,949.12,947.82,2.61605998]
[1768434653067,0.74567557,949.11,947.82,2.61605998]
[1768434653365,0.74567557,949.1,947.82,2.61605998]
[1768434653566,0.74567557,949.09,947.82,2.61605998]
[1768434653765,2.456,950.46,947.82,2.61605998]
[1768434653766,0.74567557,949.08,947.82,2.61605998]
[1768434654065,0.74567557,949.07,947.82,2.61605998]
[1768434654268,0.74567557,949.06,947.82,2.61605998]
[1768434654469,0.74567557,949.05,947.82,2.61605998]
[1768434654668,0.74567557,949.04,947.82,2.61605998]
[1768434654965,0.74567557,949.03,947.82,2.61605998]
[1768434655166,0.74567557,949.02,947.82,2.61605998]
[1768434655365,0.74567557,949.01,947.82,2.61605998]
[1768434655571,0.74567557,949.0,947.82,2.61605998]
[1768434655771,0.74567557,948.99,947.82,2.61605998]
[1768434655966,0.74567557,948.98,947.82,2.61605998]
[1768434656269,0.74567557,948.97,947.82,2.61605998]
[1768434656472,0.74567557,948.96,947.82,2.61605998]
[1768434656670,0.74567557,948.95,947.82,2.61605998]
[1768434656872,0.74567557,948.94,947.82,2.61605998]
[1768434657073,0.74567557,948.93,947.82,2.61605998]
[1768434657275,0.74567557,948.92,947.82,2.61605998]
[1768434657576,0.74567557,948.91,947.82,2.61605998]
[1768434657774,0.74567557,948.9,947.82,2.61605998]
[1768434658074,0.74567557,948.89,947.82,2.61605998]
[1768434658274,0.74567557,948.88,947.82,2.61605998]
[1768434658574,0.74567557,948.87,947.82,2.61605998]
[1768434658870,0.00833174,949.82,947.82,2.61605998]
[1768434659071,2.456,950.46,947.9,2.61605998]
[1768434659072,1.43011564,949.81,947.9,2.61605998]
[1768434659270,1.43011564,949.8,947.9,2.61605998]
[1768434659473,1.43011564,949.79,947.9,2.61605998]
[1768434659772,1.43011564,949.78,947.9,2.61605998]
[1768434659973,1.43011564,949.77,947.9,2.61605998]
[1768434660174,1.43011564,949.76,947.9,2.61605998]
[1768434660374,1.43011564,949.75,947.9,2.61605998]
[1768434660676,1.43011564,949.74,947.9,2.61605998]
[1768434660874,1.43011564,949.73,947.9,2.61605998]
[1768434661074,1.43011564,949.72,947.9,2.61605998]
[1768434661274,1.43011564,949.71,947.9,2.61605998]
[1768434661475,1.43011564,949.7,947.9,2.61605998]
[1768434661674,1.43011564,949.69,947.9,2.61605998]
[1768434661975,1.43011564,949.68,947.9,2.61605998]
[1768434662169,2.456,950.46,947.9,2.61605998]
[1768434662170,1.43011564,949.67,947.9,2.61605998]
[1768434662371,1.43011564,949.66,947.9,2.61605998]
[1768434662575,1.43011564,949.65,947.9,2.61605998]
[1768434662878,1.43011564,949.64,947.91,2.61605998]
[1768434663073,1.43011564,949.63,947.91,2.61605998]
[1768434663273,1.43011564,949.62,947.91,2.61605998]
[1768434663476,0.74445121,949.61,947.91,2.61605998]
[1768434663677,0.74445121,949.6,947.93,2.61605998]
[1768434663978,0.74445121,949.59,947.93,2.61605998]
[1768434664172,0.74445121,949.58,947.94,2.61605998]
[1768434664374,0.74445121,949.57,947.94,2.61605998]
[1768434664575,2.456,950.46,947.94,2.61605998]
[1768434664576,0.74445121,949.56,947.94,2.61605998]
[1768434664774,0.74445121,949.55,947.94,2.61605998]
[1768434664975,0.74445121,949.54,947.94,2.61605998]
[1768434665178,2.456,950.46,947.94,2.61605998]
[1768434665179,0.74445121,949.53,947.94,2.61605998]
[1768434665381,0.74445121,949.52,947.94,2.61605998]
[1768434665583,0.74445121,949.51,947.94,2.61605998]
[1768434665777,0.74445121,949.5,947.94,2.61605998]
[1768434665981,0.74472835,949.49,947.94,2.61605998]
[1768434666181,0.74472835,949.48,947.94,2.61605998]
[1768434666377,0.74472835,949.47,947.94,2.61605998]
[1768434666579,0.74472835,949.46,947.94,2.61605998]
[1768434666882,0.74472835,949.45,947.94,2.61605998]
[1768434667080,2.456,950.46,947.94,2.61605998]
[1768434667081,0.74472835,949.44,947.94,2.61605998]
[1768434667381,0.01118242,950.39,947.94,2.61605998]
[1768434667582,0.6859571,950.38,947.94,2.61605998]
[1768434667780,0.6859571,950.37,947.94,2.61605998]
[1768434668083,0.6859571,950.36,947.94,2.61605998]
[1768434668284,0.6859571,950.35,947.94,2.61605998]
[1768434668583,0.6859571,950.34,947.94,2.61605998]
[1768434668782,0.6859571,950.33,947.94,2.61605998]
[1768434668981,0.6859571,950.32,947.94,2.61605998]
[1768434669183,0.6859571,950.31,947.94,2.61605998]
[1768434669380,0.6859571,950.3,947.94,2.61605998]
[1768434669685,0.6859571,950.29,947.94,2.61605998]
[1768434669881,0.6859571,950.28,947.94,2.61605998]
[1768434670082,0.6859571,950.27,947.98,2.61605998]
[1768434670382,0.6859571,950.26,947.98,2.61605998]
[1768434670582,0.6859571,950.25,947.98,2.61605998]
[1768434670784,0.6859571,950.24,947.98,2.61605998]
[1768434670982,2.456,950.46,947.98,2.61605998]
[1768434670983,0.6859571,950.23,947.98,2.61605998]
[1768434671286,0.6859571,950.22,947.98,2.61605998]
[1768434671585,0.6859571,950.21,947.98,2.61605998]
[1768434671783,0.6859571,950.2,947.98,2.61605998]
[1768434671984,0.6859571,950.19,947.98,2.61605998]
[1768434672182,0.6859571,950.18,947.98,2.61605998]
[1768434672384,0.6859571,950.17,947.98,2.61605998]
[1768434672584,0.6859571,950.16,947.98,2.61605998]
[1768434672784,0.6859571,950.15,947.98,2.61605998]
[1768434672986,0.6859571,950.14,947.98,2.61605998]
[1768434673184,0.6859571,950.13,947.98,2.61605998]
[1768434673388,0.6859571,950.12,947.98,2.61605998]
[1768434673590,0.6859571,950.11,947.98,2.61605998]
[1768434673788,0.6859571,950.1,947.98,2.61605998]
[1768434673986,0.6859571,950.09,947.98,2.61605998]
[1768434674291,0.6859571,950.08,947.98,2.61605998]
[1768434674590,0.6859571,950.07,947.98,2.61605998]
[1768434674791,0.6859571,950.06,947.98,2.61605998]
[1768434674992,0.6859571,950.05,947.98,2.61605998]
[1768434675291,0.6859571,950.04,947.98,2.61605998]
[1768434675492,0.6859571,950.03,947.98,2.61605998]
[1768434675790,0.6859571,950.02,947.98,2.61605998]
[1768434675992,0.68546737,950.01,947.98,2.61605998]
[1768434676192,0.68546737,950.0,947.98,2.61605998]
[1768434676388,0.68546737,949.99,947.98,2.61605998]
[1768434676588,0.68546737,949.98,947.98,2.61605998]
[1768434676890,0.68546737,949.97,947.98,2.61605998]
[1768434677092,0.68546737,949.96,947.98,2.61605998]
[1768434677392,0.68546737,949.95,947.98,2.61605998]
[1768434677592,0.68546737,949.94,947.98,2.61605998]
[1768434677788,0.68546737,949.93,947.98,2.61605998]
[1768434677988,0.68546737,949.92,947.98,2.61605998]
[1768434678191,0.68546737,949.91,947.98,2.61605998]
[1768434678392,0.68546737,949.9,947.98,2.61605998]
[1768434678591,0.68546737,949.89,947.98,2.61605998]
[1768434678793,0.68546737,949.88,947.98,2.61605998]
[1768434678990,0.68546737,949.87,948.02,2.61605998]
[1768434679191,0.68546737,949.86,948.02,2.61605998]
[1768434679398,0.68546737,949.85,948.04,2.61605998]
[1768434679594,0.68546737,949.84,948.04,2.61605998]
[1768434679795,0.68546737,949.83,948.04,2.61605998]
[1768434679990,0.68546737,949.82,948.04,2.61605998]
[1768434680291,0.68546737,949.81,948.04,2.61605998]
[1768434680495,0.68546737,949.8,948.03,2.61605998]
[1768434680699,0.68546737,949.79,948.03,2.61605998]
[1768434680892,0.68546737,949.78,948.03,2.61605998]
[1768434681096,0.68546737,949.77,948.03,2.61605998]
[1768434681297,0.68546737,949.76,948.03,2.61605998]
[1768434681492,0.68546737,949.75,948.03,2.61605998]
[1768434681692,0.68546737,949.74,948.03,2.61605998]
[1768434681891,0.68546737,949.73,948.03,2.61605998]
[1768434682097,0.68546737,949.72,948.03,2.61605998]
[1768434682293,0.68546737,949.71,948.03,2.61605998]
[1768434682497,0.68546737,949.7,948.03,2.61605998]
[1768434682798,3.86711515,950.49,948.03,2.61605998]
[1768434682996,0.68532858,950.48,948.03,2.61605998]
[1768434683193,0.68532858,950.47,948.03,2.61605998]
[1768434683394,0.68532858,950.46,948.03,2.61605998]
[1768434683595,0.68532858,950.45,948.03,2.61605998]
[1768434683896,0.68532858,950.44,948.03,2.61605998]
[1768434684198,0.68529002,950.43,948.03,2.61605998]
[1768434684492,0.68529002,950.42,948.03,2.61605998]
[1768434684692,0.68529002,950.41,948.02,2.61605998]
[1768434684996,0.68529002,950.4,948.02,2.61605998]
[1768434685292,0.68529002,950.39,948.02,2.61605998]
[1768434685596,0.68529002,950.38,948.02,2.61605998]
[1768434685794,0.68529002,950.37,948.02,2.61605998]
[1768434685992,0.68529002,950.36,948.02,2.61605998]
[1768434686193,0.68529002,950.35,948.02,2.61605998]
[1768434686395,0.68529002,950.34,948.02,2.61605998]
[1768434686595,0.68529002,950.33,948.02,2.61605998]
[1768434686793,0.68529002,950.32,948.02,2.61605998]
[1768434687092,0.68529002,950.31,948.02,2.61605998]
[1768434687292,0.68529002,950.3,948.02,2.61605998]
[1768434687595,0.68529002,950.29,948.02,2.61605998]
[1768434687793,0.68529002,950.28,948.02,2.61605998]
[1768434687995,0.68529002,950.27,948.02,2.61605998]
[1768434688194,0.68529002,950.26,948.02,2.61605998]
[1768434688399,0.68529002,950.25,948.0,2.61605998]
[1768434688598,0.68529002,950.24,948.0,2.61605998]
[1768434688799,0.68529002,950.23,947.99,2.61605998]
[1768434688994,0.68529002,950.22,947.99,2.61605998]
[1768434689199,0.68529002,950.21,947.99,2.61605998]
[1768434689395,0.68529002,950.2,947.99,2.61605998]
[1768434689594,0.68529002,950.19,947.99,2.61605998]
[1768434689796,0.68529002,950.18,947.99,2.61605998]
[1768434690096,0.68529002,950.17,947.99,2.61605998]
[1768434690299,0.68529002,950.16,947.99,2.61605998]
[1768434690498,0.68529002,950.15,947.99,2.61605998]
[1768434690700,0.68529002,950.14,947.99,2.61605998]
[1768434690896,0.68529002,950.13,947.99,2.61605998]
[1768434691096,0.68529002,950.12,947.99,2.61605998]
[1768434691401,0.68529002,950.11,947.99,2.61605998]
[1768434691601,0.68529002,950.1,947.99,2.61605998]
[1768434691901,0.68529002,950.09,947.99,2.61605998]
[1768434692097,0.68529002,950.08,947.99,2.61605998]
[1768434692397,0.68529002,950.07,947.99,2.61605998]
[1768434692598,0.68529002,950.06,947.99,2.61605998]
[1768434692801,0.68529002,950.05,947.99,2.61605998]
[1768434693102,0.68529002,950.04,948.0,2.61605998]
[1768434693302,0.68529002,950.03,948.0,2.61605998]
[1768434693503,0.68529002,950.02,948.01,2.61605998]
[1768434693702,0.68529002,950.01,948.01,2.61605998]
[1768434693899,0.68529002,950.0,948.01,2.61605998]
[1768434694199,0.68529002,949.99,948.01,2.61605998]
[1768434694402,0.68529002,949.98,948.01,2.61605998]
[1768434694599,0.68529002,949.97,948.01,2.61605998]
[1768434694903,1.838,950.42,948.01,2.61605998]
[1768434694904,0.68529002,949.96,948.01,2.61605998]
[1768434695199,0.68529002,949.95,948.01,2.61605998]
[1768434695402,0.68529002,949.94,948.01,2.61605998]
[1768434695703,0.68529002,949.93,948.02,2.61605998]
[1768434695902,0.68529002,949.92,948.02,2.61605998]
[1768434696097,0.68529002,949.91,948.02,2.61605998]
[1768434696300,0.68529002,949.9,948.02,2.61605998]
[1768434696500,0.68529002,949.89,948.02,2.61605998]
[1768434696702,0.68529002,949.88,948.02,2.61605998]
[1768434696903,0.68529002,949.87,948.02,2.61605998]
[1768434697202,0.68529002,949.86,948.02,2.61605998]
[1768434697398,1.43000017,949.85,948.02,2.61605998]
[1768434697604,1.43000017,949.84,948.02,2.61605998]
[1768434697802,1.43000017,949.83,948.02,2.61605998]
[1768434698004,1.43000017,949.82,948.02,2.61605998]
[1768434698199,1.43000017,949.81,948.02,2.61605998]
[1768434698405,1.43000017,949.8,948.02,2.61605998]
[1768434698603,1.43000017,949.79,948.02,2.61605998]
[1768434698905,1.43000017,949.78,948.02,2.61605998]
[1768434699107,1.43000017,949.77,948.02,2.61605998]
[1768434699303,1.43000017,949.76,948.03,2.61605998]
[1768434699504,1.43000017,949.75,948.03,2.61605998]
[1768434699704,1.43000017,949.74,948.03,2.61605998]
[1768434700002,1.43000017,949.73,948.03,2.61605998]
[1768434700204,1.43013989,949.72,948.03,2.61605998]
[1768434700405,1.43009447,949.71,948.04,2.61605998]
[1768434700602,1.43009447,949.7,948.04,2.61605998]
[1768434700807,1.43009447,949.69,948.04,2.61605998]
[1768434701004,1.43009447,949.68,948.04,2.61605998]
[1768434701208,1.43009447,949.67,948.04,2.61605998]
[1768434701408,0.74484987,949.66,948.04,2.61605998]
[1768434701606,0.74484987,949.65,948.04,2.61605998]
[1768434701808,0.74484987,949.64,948.04,2.61605998]
[1768434702008,0.74484987,949.63,948.04,2.61605998]
[1768434702209,0.74484987,949.62,948.04,2.61605998]
[1768434702409,0.74484987,949.61,948.04,2.61605998]
[1768434702610,0.74484987,949.6,948.06,2.61605998]
[1768434702808,0.74484987,949.59,948.06,2.61605998]
[1768434703011,0.74484987,949.58,948.06,2.61605998]
[1768434703312,0.74484987,949.57,948.06,2.61605998]
[1768434703612,0.74484987,949.56,948.07,2.61605998]
[1768434703806,0.74484987,949.55,948.07,2.61605998]
[1768434704007,0.74484987,949.54,948.07,2.61605998]
[1768434704306,0.74484987,949.53,948.07,2.61605998]
[1768434704606,0.74484987,949.52,948.07,2.61605998]
[1768434704810,0.74484987,949.51,948.07,2.61605998]
[1768434705008,0.74484987,949.5,948.07,2.61605998]
[1768434705207,0.74484987,949.49,948.07,2.61605998]
[1768434705511,0.74484987,949.48,948.07,2.61605998]
[1768434705708,0.74484987,949.47,948.07,2.61605998]
[1768434706007,0.74484987,949.46,948.07,2.61605998]
[1768434706212,0.74484987,949.45,948.07,2.61605998]
[1768434706512,0.74484987,949.44,948.07,2.61605998]
[1768434706709,0.74484987,949.43,948.07,2.61605998]
[1768434706914,0.74484987,949.42,948.07,2.61605998]
[1768434707114,0.74484987,949.41,948.07,2.61605998]
[1768434707316,0.74484987,949.4,948.07,2.61605998]
[1768434707516,0.74484987,949.39,948.07,2.61605998]
[1768434707713,0.74484987,949.38,948.08,2.61605998]
[1768434708015,0.74484987,949.37,948.08,2.61605998]
[1768434708216,0.74484987,949.36,948.08,2.61605998]
[1768434708516,0.74484987,949.35,948.08,2.61605998]
[1768434708712,0.74484987,949.34,948.08,2.61605998]
[1768434708914,0.74484987,949.33,948.08,2.61605998]
[1768434709116,0.74484987,949.32,948.08,2.61605998]
[1768434709314,0.74484987,949.31,948.08,2.61605998]
[1768434709517,0.74484987,949.3,948.08,2.61605998]
[1768434709716,0.74484987,949.29,948.08,2.61605998]
[1768434710014,0.74484987,949.28,948.08,2.61605998]
[1768434710213,0.74484987,949.27,948.08,2.61605998]
[1768434710416,0.74484987,949.26,948.08,2.61605998]
[1768434710714,0.74484987,949.25,948.08,2.61605998]
[1768434711019,0.74484987,949.24,948.08,2.61605998]
[1768434711218,0.74484987,949.23,948.08,2.61605998]
[1768434711416,0.74484987,949.22,948.1,2.61605998]
[1768434711720,0.74484987,949.21,948.1,2.61605998]
[1768434711916,0.74484987,949.2,948.1,2.61605998]
[1768434712118,0.74484987,949.19,948.1,2.61605998]
[1768434712314,0.74484987,949.18,948.1,2.61605998]
[1768434712515,0.74484987,949.17,948.1,2.61605998]
[1768434712717,0.74484987,949.16,948.1,2.61605998]
[1768434712916,0.74484987,949.15,948.1,2.61605998]
[1768434713120,0.74484987,949.14,948.1,2.61605998]
[1768434713321,0.74484987,949.13,948.1,2.61605998]
[1768434713621,0.74484987,949.12,948.11,2.61605998]
[1768434713920,0.74484987,949.11,948.11,2.61605998]
[1768434714118,0.74484987,949.1,948.11,2.61605998]
[1768434714319,0.74484987,949.09,948.11,2.61605998]
[1768434714517,0.74484987,949.08,948.17,2.61605998]
[1768434714723,0.15435532,949.07,948.17,2.61605998]
[1768434714919,0.01132469,950.02,948.17,2.61605998]
[1768434715119,5.83634214,950.29,948.17,2.61605998]
[1768434715120,0.69213592,950.01,948.17,2.61605998]
[1768434715323,0.69213592,950.0,948.17,2.61605998]
[1768434715521,0.69213592,949.99,948.15,2.61605998]
[1768434715721,0.69213592,949.98,948.15,2.61605998]
[1768434715922,0.69213592,949.97,948.15,2.61605998]
[1768434716124,0.69213592,949.96,948.15,2.61605998]
[1768434716324,0.69213592,949.95,948.15,2.61605998]
[1768434716523,0.69213592,949.94,948.15,2.61605998]
[1768434716720,2.298,949.98,948.15,2.61605998]
[1768434716721,0.69213592,949.93,948.15,2.61605998]
[1768434716919,0.69213592,949.92,948.15,2.61605998]
[1768434717219,0.69213592,949.91,948.15,2.61605998]
[1768434717424,0.69213592,949.9,948.15,2.61605998]
[1768434717622,0.69213592,949.89,948.14,2.61605998]
[1768434717820,0.69213592,949.88,948.14,2.61605998]
[1768434718024,0.69213592,949.87,948.14,2.61605998]
[1768434718223,0.69213592,949.86,948.14,2.61605998]
[1768434718420,0.69213592,949.85,948.14,2.61605998]
[1768434718624,0.69213592,949.84,948.14,2.61605998]
[1768434718821,0.69213592,949.83,948.14,2.61605998]
[1768434719120,0.69213592,949.82,948.14,2.61605998]
[1768434719324,0.69213592,949.81,948.14,2.61605998]
[1768434719522,0.69213592,949.8,948.14,2.61605998]
[1768434719726,0.69213592,949.79,948.14,2.61605998]
[1768434719921,0.69213592,949.78,948.14,2.61605998]
[1768434720220,0.69213592,949.77,948.14,2.61605998]
[1768434720424,2.298,949.98,948.14,2.61605998]
[1768434720425,0.69213592,949.76,948.14,2.61605998]
[1768434720619,0.69213592,949.75,948.14,2.61605998]
[1768434720821,0.69213592,949.74,948.14,2.61605998]
[1768434721024,2.298,949.98,948.14,2.61605998]
[1768434721224,0.69186066,949.97,948.14,2.61605998]
[1768434721425,0.69186066,949.96,948.14,2.61605998]
[1768434721720,0.69186066,949.95,948.14,2.61605998]
[1768434721920,0.69186066,949.94,948.14,2.61605998]
[1768434722124,0.69186066,949.93,948.14,2.61605998]
[1768434722424,0.69186066,949.92,948.14,2.61605998]
[1768434722622,0.69186066,949.91,948.14,2.61605998]
[1768434722823,0.69186066,949.9,948.14,2.61605998]
[1768434723024,0.69186066,949.89,948.14,2.61605998]
[1768434723223,0.69186066,949.88,948.14,2.61605998]
[1768434723525,0.69186066,949.87,948.14,2.61605998]
[1768434723724,0.69186066,949.86,948.14,2.61605998]
[1768434723924,0.69186066,949.85,948.12,2.61605998]
[1768434724123,0.69186066,949.84,948.12,2.61605998]
[1768434724324,0.69186066,949.83,948.12,2.61605998]
[1768434724527,0.69186066,949.82,948.12,2.61605998]
[1768434724725,0.69186066,949.81,948.12,2.61605998]
[1768434725026,0.69186066,949.8,948.12,2.61605998]
[1768434725228,0.69186066,949.79,948.12,2.61605998]
[1768434725524,0.69186066,949.78,948.12,2.61605998]
[1768434725725,0.69186066,949.77,948.12,2.61605998]
[1768434726023,0.69186066,949.76,948.12,2.61605998]
[1768434726328,0.69186066,949.75,948.12,2.61605998]
[1768434726524,0.69186066,949.74,948.12,2.61605998]
[1768434726724,0.69186066,949.73,948.12,2.61605998]
[1768434726924,2.298,949.98,948.12,2.61605998]
[1768434727125,0.69180978,949.97,948.12,2.61605998]
[1768434727325,0.69180978,949.96,948.12,2.61605998]
[1768434727525,0.69180978,949.95,948.12,2.61605998]
[1768434727730,0.69180978,949.94,948.12,2.61605998]
[1768434727930,0.69180978,949.93,948.12,2.61605998]
[1768434728132,0.69180978,949.92,948.12,2.61605998]
[1768434728328,0.69180978,949.91,948.12,2.61605998]
[1768434728631,0.69180978,949.9,948.12,2.61605998]
[1768434728826,0.69180978,949.89,948.12,2.61605998]
[1768434729028,0.69180978,949.88,948.12,2.61605998]
[1768434729231,0.69180978,949.87,948.12,2.61605998]
[1768434729432,0.69180978,949.86,948.12,2.61605998]
[1768434729731,0.69180978,949.85,948.11,2.61605998]
[1768434729928,0.69180978,949.84,948.11,2.61605998]
[1768434730132,0.69180978,949.83,948.11,2.61605998]
[1768434730329,0.69180978,949.82,948.11,2.61605998]
[1768434730536,0.69180978,949.81,948.11,2.61605998]
[1768434730734,0.69180978,949.8,948.11,2.61605998]
[1768434731034,0.69180978,949.79,948.11,2.61605998]
[1768434731234,0.69180978,949.78,948.11,2.61605998]
[1768434731533,0.69180978,949.77,948.11,2.61605998]
[1768434731734,0.69180978,949.76,948.11,2.61605998]
[1768434731934,0.69180978,949.75,948.11,2.61605998]
[1768434732131,0.69180978,949.74,948.11,2.61605998]
[1768434732334,5.83634214,950.29,948.11,2.61605998]
[1768434732335,0.69180978,949.73,948.11,2.61605998]
[1768434732635,5.83634214,950.29,948.11,2.61605998]
[1768434732834,0.69167338,950.28,948.11,2.61605998]
[1768434733033,0.69167338,950.27,948.11,2.61605998]
[1768434733231,0.69167338,950.26,948.11,2.61605998]
[1768434733435,0.69167338,950.25,948.11,2.61605998]
[1768434733636,0.69167338,950.24,948.11,2.61605998]
[1768434733832,0.69167338,950.23,948.11,2.61605998]
[1768434734035,5.83634214,950.29,948.11,2.61605998]
[1768434734036,0.69167338,950.22,948.11,2.61605998]
[1768434734332,0.69167338,950.21,948.11,2.61605998]
[1768434734531,0.69167338,950.2,948.11,2.61605998]
[1768434734735,0.69167338,950.19,948.11,2.61605998]
[1768434734936,0.69167338,950.18,948.11,2.61605998]
[1768434735133,0.69167338,950.17,948.11,2.61605998]
[1768434735337,0.69167338,950.16,948.11,2.61605998]
[1768434735536,0.69167338,950.15,948.11,2.61605998]
[1768434735833,0.69167338,950.14,948.11,2.61605998]
[1768434736036,0.69167338,950.13,948.11,2.61605998]
[1768434736234,0.69167338,950.12,948.11,2.61605998]
[1768434736437,0.69167338,950.11,948.11,2.61605998]
[1768434736640,0.69167338,950.1,948.11,2.61605998]
[1768434736834,0.69167338,950.09,948.11,2.61605998]
[1768434737033,0.69167338,950.08,948.11,2.61605998]
[1768434737334,0.69167338,950.07,948.12,2.61605998]
[1768434737534,0.69167338,950.06,948.12,2.61605998]
[1768434737734,0.69167338,950.05,948.12,2.61605998]
[1768434737934,0.69167338,950.04,948.12,2.61605998]
[1768434738139,0.69167338,950.03,948.12,2.61605998]
[1768434738336,0.69167338,950.02,948.12,2.61605998]
[1768434738640,0.69167338,950.01,948.12,2.61605998]
[1768434738840,0.69167338,950.0,948.12,2.61605998]
[1768434739040,0.69167338,949.99,948.12,2.61605998]
[1768434739241,0.69167338,949.98,948.12,2.61605998]
[1768434739537,0.69167338,949.97,948.12,2.61605998]
[1768434739737,0.69167338,949.96,948.12,2.61605998]
[1768434739941,0.69167338,949.95,948.12,2.61605998]
[1768434740238,0.69167338,949.94,948.12,2.61605998]
[1768434740441,0.69167338,949.93,948.12,2.61605998]
[1768434740640,0.69167338,949.92,948.12,2.61605998]
[1768434740841,0.69167338,949.91,948.12,2.61605998]
[1768434741041,0.69167338,949.9,948.12,2.61605998]
[1768434741242,0.69167338,949.89,948.12,2.61605998]
[1768434741541,0.69167338,949.88,948.12,2.61605998]
[1768434741741,0.69167338,949.87,948.12,2.61605998]
[1768434742041,0.69167338,949.86,948.12,2.61605998]
[1768434742242,0.69167338,949.85,948.12,2.61605998]
[1768434742438,0.69167338,949.84,948.12,2.61605998]
[1768434742741,0.69167338,949.83,948.12,2.61605998]
[1768434743038,0.69167338,949.82,948.12,2.61605998]
[1768434743238,0.69167338,949.81,948.12,2.61605998]
[1768434743438,0.69167338,949.8,948.12,2.61605998]
[1768434743641,0.69167338,949.79,948.12,2.61605998]
[1768434743944,0.69167338,949.78,948.12,2.61605998]
[1768434744138,0.69167338,949.77,948.12,2.61605998]
[1768434744343,0.69167338,949.76,948.12,2.61605998]
[1768434744542,0.69167338,949.75,948.12,2.61605998]
[1768434744739,0.69167338,949.74,948.12,2.61605998]
[1768434744938,0.69167338,949.73,948.12,2.61605998]
[1768434745242,0.69167338,949.72,948.13,2.61605998]
[1768434745443,2.05,950.2,948.13,2.61605998]
[1768434745742,0.69189482,950.19,948.13,2.61605998]
[1768434745937,0.69189482,950.18,948.13,2.61605998]
[1768434746137,0.69189482,950.17,948.13,2.61605998]
[1768434746341,0.69189482,950.16,948.13,2.61605998]
[1768434746539,0.69189482,950.15,948.13,2.61605998]
[1768434746843,0.69189482,950.14,948.13,2.61605998]
[1768434747039,0.69189482,950.13,948.13,2.61605998]
[1768434747240,0.69196999,950.12,948.13,2.61605998]
[1768434747540,0.69196999,950.11,948.13,2.61605998]
[1768434747738,0.69196999,950.1,948.13,2.61605998]
[1768434747938,0.69196999,950.09,948.13,2.61605998]
[1768434748139,0.69196999,950.08,948.13,2.61605998]
[1768434748340,0.69196999,950.07,948.12,2.61605998]
[1768434748641,0.69196999,950.06,948.12,2.61605998]
[1768434748839,0.69196999,950.05,948.12,2.61605998]
[1768434749042,0.69196999,950.04,948.12,2.61605998]
[1768434749241,0.69196999,950.03,948.12,2.61605998]
[1768434749445,0.69196999,950.02,948.12,2.61605998]
[1768434749744,0.69196999,950.01,948.12,2.61605998]
[1768434749941,0.69196999,950.0,948.12,2.61605998]
[1768434750142,0.69196999,949.99,948.12,2.61605998]
[1768434750341,0.69196999,949.98,948.12,2.61605998]
[1768434750542,0.69196999,949.97,948.12,2.61605998]
[1768434750747,0.69196999,949.96,948.12,2.61605998]
[1768434750946,0.69196999,949.95,948.12,2.61605998]
[1768434751247,0.69196999,949.94,948.12,2.61605998]
[1768434751446,0.69196999,949.93,948.12,2.61605998]
[1768434751747,0.69196999,949.92,948.12,2.61605998]
[1768434751947,0.69196999,949.91,948.12,2.61605998]
[1768434752144,0.69196999,949.9,948.12,2.61605998]
[1768434752447,0.69196999,949.89,948.13,2.61605998]
[1768434752643,0.69196999,949.88,948.13,2.61605998]
[1768434752844,0.69196999,949.87,948.13,2.61605998]
[1768434753043,0.69196999,949.86,948.04,2.61605998]
[1768434753242,0.69196999,949.85,948.04,2.61605998]
[1768434753443,0.69196999,949.84,948.04,2.61605998]
[1768434753643,0.69196999,949.83,948.04,2.61605998]
[1768434753948,0.69196999,949.82,948.04,2.61605998]
[1768434754145,0.69196999,949.81,948.04,2.61605998]
[1768434754345,0.69196999,949.8,948.04,2.61605998]
[1768434754543,0.69196999,949.79,948.04,2.61605998]
[1768434754748,0.69196999,949.78,948.04,2.61605998]
[1768434754944,0.69196999,949.77,948.04,2.61605998]
[1768434755248,0.69196999,949.76,948.04,2.61605998]
[1768434755445,0.69196999,949.75,948.04,2.61605998]
[1768434755642,0.69196999,949.74,948.03,2.61605998]
[1768434755848,0.69196999,949.73,948.03,2.61605998]
[1768434756048,0.69196999,949.72,948.03,2.61605998]
[1768434756248,0.69196999,949.71,948.03,2.61605998]
[1768434756450,0.69196999,949.7,948.03,2.61605998]
[1768434756750,0.69196999,949.69,948.03,2.61605998]
[1768434757050,0.69196999,949.68,948.03,2.61605998]